Cogmind - Beta 15 *** ADVENTURER MODE // 2025.07.28 @ 10:52:55 Player: Gentle Jesus Result: Self-destructed Performance ------------- Evolutions (2) 1000 Regions Visited (5) 1000 Robots Destroyed (21) 105 Value Destroyed (710) 710 Prototype IDs (2) 40 Alien Tech Used (0) 0 Bonus (153) 153 TOTAL SCORE: 3008 Bonus ------- Follower Combat Kills 153 Cogmind --------- Core Integrity 356/550 Matter 35/300 Energy 100/100 System Corruption 3% Temperature Cool (0) Movement Core (350) Ox6 Location -8/Materials Parts ------- > --- POWER (1) -------- (None) > --- PROPULSION (4) --- (None) > --- UTILITY (4) ------ Large Storage Unit Seismic Detector System Shield > --- WEAPON (2) ------- (None) > --- INVENTORY (15) --- Light Ion Engine Medium Matter Pod (100) Advanced Visual Processing Unit Signal Interpreter Improved Terrain Scanner Improved Light Armor Plating Grenade Launcher Grenade Launcher Grenade Launcher Peak State ------------ > --- POWER ------------ Light Deuterium Engine > --- PROPULSION ------- Light Treads Light Treads Light Treads Improved Treads > --- UTILITY ---------- Large Storage Unit Seismic Detector Medium Armor Plating System Shield > --- WEAPON ----------- Flak Cannon Grenade Launcher > --- INVENTORY -------- Light Ion Engine Light Treads Medium Matter Pod Advanced Visual Processing Unit Signal Interpreter Improved Terrain Scanner Improved Light Armor Plating Light Assault Rifle Grenade Launcher Grenade Launcher [Rating: 20] Favorites ----------- Power Ion Engine Engine Ion Engine Propulsion Light Treads Treads Light Treads Utility Seismic Detector Device Seismic Detector Storage Medium Storage Unit Hackware System Shield Protection Hardened Light Armor Plating Weapon Small Laser Energy Gun Small Laser Ballistic Gun Light Assault Rifle Ballistic Cannon Flak Cannon Launcher Grenade Launcher Build | -11 -10 -10 -10 -9 -8 ------- Run | Yrd Mat Min Exi Min Mat Slots Evolved 4 | . . . . . 4 Power . | . . . . . . Propulsion 2 | . . . . . 2 Utility 2 | . . . . . 2 Weapon . | . . . . . . Parts Attached 21 | 7 . 1 . . 13 Power 2 | 1 . . . . 1 Engine 2 | 1 . . . . 1 Core . | . . . . . . Reactor . | . . . . . . Propulsion 6 | 2 . . . . 4 Treads 6 | 2 . . . . 4 Leg . | . . . . . . Wheel . | . . . . . . Hover . | . . . . . . Flight . | . . . . . . Utility 8 | 2 . 1 . . 5 Device 1 | 1 . . . . . Storage 3 | 1 . 1 . . 1 Processor . | . . . . . . Hackware 2 | . . . . . 2 Protection 2 | . . . . . 2 Artifact . | . . . . . . Weapon 5 | 2 . . . . 3 Energy Gun 1 | 1 . . . . . Energy Cannon . | . . . . . . Ballistic Gun 1 | 1 . . . . . Ballistic Cannon 1 | . . . . . 1 Launcher 2 | . . . . . 2 Special Weapon . | . . . . . . Impact Weapon . | . . . . . . Slashing Weapon . | . . . . . . Piercing Weapon . | . . . . . . Special Melee Weapon . | . . . . . . Unidentified Prototypes . | . . . . . . Parts Lost 10 | . . . . . 10 Power 1 | . . . . . 1 Propulsion 5 | . . . . . 5 Utility 2 | . . . . . 2 Weapon 2 | . . . . . 2 Highest Loss Streak 9 | . . . . . 9 To Critical Strikes . | . . . . . . Average Backups 6 | 1 2 4 7 8 8 Power 1 | . 1 1 1 1 1 Propulsion . | . . . . . . Utility 3 | . 1 2 3 3 4 Weapon 2 | . . 1 3 3 3 Tool/Special . | . . . . . . Unused Backups 8 | . . . . . 8 Power 1 | . . . . . 1 Propulsion . | . . . . . . Utility 6 | . . . . . 6 Weapon 1 | . . . . . 1 Tool/Special . | . . . . . . Average Slot Usage (%) 97 | . 100 100 100 100 93 Engine 12 | . 14 14 14 14 8 Treads 29 | . 28 28 28 28 33 Device 12 | . 14 14 14 14 9 Storage 12 | . 14 14 14 14 9 Hackware 3 | . . . . . 11 Protection 1 | . . . . . 3 Energy Gun 12 | . 14 14 14 14 7 Ballistic Gun 11 | . 14 14 14 14 4 Launcher 1 | . . . . . 3 Peak Build Rating 20 | 7 7 7 7 8 20 Average Rating 9 | 5 7 7 7 7 16 On Entrance 6 | . 7 7 7 7 8 Naked Turns . | . . . . . . Heaviest Build 42 | 13 13 18 18 18 42 Greatest Support 83 | 40 40 40 40 40 83 Greatest Overweight (x) 8 | 1 . . . . 8 Average Overweight (x) . | . . . . . . Largest Inventory Capacity 15 | 8 8 10 10 10 15 Average Capacity 9 | 7 8 8 10 10 10 Most Carried 10 | 2 4 7 7 9 10 Average Carried 6 | 1 2 4 7 8 8 Final Capacity 15 | 8 8 10 10 10 15 Final Carried 9 | 2 4 7 7 9 9 Class Distribution -------------------- 71% | Mutant 23% | Scavenger-Mutant 5% | Hacker-Mutant Dominant Class ---------------- Mutant | -10/Materials Mutant | -10/Mines Mutant | -10/Exiles Mutant | -9/Mines Scavenger-Mutant | -8/Materials Resources | -11 -10 -10 -10 -9 -8 ----------- Run | Yrd Mat Min Exi Min Mat Matter Collected 544 | 276 . . 110 6 152 Remotely . | . . . . . . Salvage Created 654 | 117 . . . 44 493 Parts 32 | 9 . . . 2 21 Haulers Intercepted . | . . . . . . Recyclers Shooed 1 | 1 . . . . . Parts Field Recycled . | . . . . . . Retrieved Matter . | . . . . . . Parts Self-Destructed . | . . . . . . Prevented . | . . . . . . Kills | -11 -10 -10 -10 -9 -8 ------- Run | Yrd Mat Min Exi Min Mat Combat Hostiles Destroyed 16 | . . . . 1 15 Guns 9 | . . . . 1 8 Cannons 1 | . . . . . 1 AOE 6 | . . . . . 6 Classes Destroyed 8 | 2 . . . 1 5 Worker 1 | . . . . . 1 Builder 1 | . . . . . 1 Tunneler 2 | 2 . . . . . Recycler 1 | 1 . . . . . Swarmer 3 | . . . . . 3 Grunt 10 | . . . . 1 9 Brawler 2 | . . . . . 2 Hunter 1 | . . . . . 1 Best Kill Streak 4 | 3 . . . 1 4 Combat Bots Only 4 | . . . . 1 4 Max Kills in Single Turn 2 | 1 . . . 1 2 Gunslinging . | . . . . . . Exploded 2 | . . . . . 2 Melee . | . . . . . . Uniques/NPCs Destroyed . | . . . . . . Combat | -11 -10 -10 -10 -9 -8 -------- Run | Yrd Mat Min Exi Min Mat Hostile Shots Fired 131 | . . . . 5 126 Missed 31 | . . . . 1 30 Hits 100 | . . . . 4 96 Melee 3 | . . . . . 3 Projectile 97 | . . . . 4 93 Critical Strikes 2 | . . . . . 2 Damage Taken 1399 | . 18 . . 49 1332 Core 204 | . . . . 10 194 Absorbed by Shields . | . . . . . . Ignored by Resistances 404 | . 5 . . 15 384 Core Remaining (%) 98 | 100 . . . 96 . Volleys Fired 70 | 6 . . . 6 58 Largest 2 | 2 . . . 2 2 Hottest 70 | 60 . . . 60 70 Shots Fired 123 | 12 . . . 12 99 Gun 95 | 12 . . . 12 71 Cannon 17 | . . . . . 17 Launcher 11 | . . . . . 11 Special . | . . . . . . Kinetic 70 | 6 . . . 6 58 Thermal 42 | 6 . . . 6 30 Explosive 11 | . . . . . 11 Electromagnetic . | . . . . . . Robot Hit Streak 18 | 6 . . . 5 18 Robot Miss Streak 3 | 1 . . . 1 3 Penetration Max . | . . . . . . Secondary Targets 2 | . . . . . 2 Max Gunslinging Chain 1 | . . . . . 1 Shots Hit Robots 99 | 10 . . . 9 80 Core Hits 67 | 5 . . . 5 57 Critical Kills 1 | . . . . 1 . Critical Parts Destroyed . | . . . . . . Critical Strikes 1 | . . . . 1 . Destroy 1 | . . . . 1 . Melee Attacks . | . . . . . . Impact . | . . . . . . Slashing . | . . . . . . Piercing . | . . . . . . Sneak Attacks . | . . . . . . Combat Hostiles . | . . . . . . Follow-up Attacks . | . . . . . . Damage Inflicted 1662 | 101 . . . 91 1470 Guns 697 | 101 . . . 91 505 Cannons 435 | . . . . . 435 Explosions 530 | . . . . . 530 Melee . | . . . . . . Ramming . | . . . . . . Kinetic 777 | 36 . . . 49 692 Thermal 355 | 65 . . . 42 248 Explosive 530 | . . . . . 530 Electromagnetic . | . . . . . . Impact . | . . . . . . Slashing . | . . . . . . Piercing . | . . . . . . Highest Corruption 3 | . . . . . 3 Average Corruption 3 | . . . . . 3 Corruption Purged . | . . . . . . Corruption Blocked . | . . . . . . Effects 11 | . . . . . 11 Message Errors 1 | . . . . . 1 Matter Fused 2 | . . . . . 2 Heat Flow Errors 3 | . . . . . 3 Energy Discharges 3 | . . . . . 3 Parts Rejected 1 | . . . . . 1 Data Loss (minor) 1 | . . . . . 1 Overload Shots . | . . . . . . Overflow Damage 6 | . . . . . 6 Projectiles . | . . . . . . Explosions 6 | . . . . . 6 Melee . | . . . . . . Knockbacks 23 | . . . . . 23 Impact . | . . . . . . Kinetic 22 | . . . . . 22 Secondary 1 | . . . . . 1 Self-Inflicted Damage 251 | . . . . . 251 Shots 4 | . . . . . 4 Rammed 2 | 1 . . . 1 . Targets Rammed 2 | 1 . . . 1 . Kicked . | . . . . . . Crushed . | . . . . . . Highest Temperature 175 | 20 . . . 44 175 Average Temperature 32 | 15 . . . 20 35 Received Heat Transfer 660 | . . . . 39 621 Siege Activations . | . . . . . . Martial Activations . | . . . . . . Shielding Activations . | . . . . . . Robots Disrupted . | . . . . . . Combat Hostiles . | . . . . . . Robots Corrupted . | . . . . . . Combat Hostiles . | . . . . . . Parts Fried . | . . . . . . Impact Corruptions . | . . . . . . Robots Melted . | . . . . . . Combat Hostiles . | . . . . . . Parts Melted . | . . . . . . Heat Transferred 800 | 150 . . . 100 550 Parts Sabotaged . | . . . . . . Parts Stolen . | . . . . . . Parts Stripped . | . . . . . . Power Chain Reactions . | . . . . . . Alert | -11 -10 -10 -10 -9 -8 ------- Run | Yrd Mat Min Exi Min Mat Maximum Alert Level . | . . . . . . Low Security (%) 100 | 100 100 100 . 100 100 Level 1 . | . . . . . . Level 2 . | . . . . . . Level 3 . | . . . . . . Level 4 . | . . . . . . Level 5 . | . . . . . . High Security . | . . . . . . Max Security . | . . . . . . Peak Influence 138 | 10 . 5 . 52 138 Initial . | . . . . . . Average 27 | 1 . . . 10 62 Influence Increases 740 | 15 . 10 . 104 611 Destroy 0b10 Robot/C 420 | . . . . 80 340 Destroy 0b10 Robot/NC 30 | 15 . . . . 15 Destroy Leader 80 | . . . . 20 60 Allied During Kill 6 | . . . . 4 2 Successful Hack 27 | . . 10 . . 17 Disable Machine 63 | . . . . . 63 Destroy Structure 114 | . . . . . 114 Influence Decreases 691 | 15 . 10 . 104 562 Time Decay 454 | 15 . 10 . 104 325 Lost Part 100 | . . . . . 100 Lost Ally 29 | . . . . . 29 Purge Threat 108 | . . . . . 108 Squads Dispatched 1 | . 1 . . . . Investigation 1 | . 1 . . . . Extermination . | . . . . . . Reinforcement . | . . . . . . Assault . | . . . . . . Garrison . | . . . . . . Intercept . | . . . . . . Searches Triggered . | . . . . . . Construction Impeded . | . . . . . . Haulers Reinforced . | . . . . . . Active Scanning Responses . | . . . . . . Cargo Convoy Interrupts . | . . . . . . Stealth | -11 -10 -10 -10 -9 -8 --------- Run | Yrd Mat Min Exi Min Mat Distress Signals 3 | . . . . 1 2 Communications Jammed . | . . . . . . Distress Signals . | . . . . . . Times Spotted 29 | . . . . 6 23 Peak Tracking Total 6 | . . . . 2 6 Tactical Retreats . | . . . . . . Traps | -11 -10 -10 -10 -9 -8 ------- Run | Yrd Mat Min Exi Min Mat Traps Triggered 2 | . 1 . . . 1 Indirectly . | . . . . . . Trap Hack Attempts . | . . . . . . Triggered . | . . . . . . Disarmed . | . . . . . . Reprogrammed . | . . . . . . Reused . | . . . . . . Traps Extracted . | . . . . . . Installed . | . . . . . . Triggered . | . . . . . . Objects Rigged 1 | . 1 . . . . Machines | -11 -10 -10 -10 -9 -8 ---------- Run | Yrd Mat Min Exi Min Mat Machines Disabled 7 | . . . . . 7 Max in Single Turn 3 | . . . . . 3 Machines Repaired . | . . . . . . Machines Dismantled . | . . . . . . Machines Sabotaged . | . . . . . . Overloaded Fab Kills . | . . . . . . Hacking | -11 -10 -10 -10 -9 -8 --------- Run | Yrd Mat Min Exi Min Mat Machines Accessed 6 | . 1 1 . . 4 Terminals 6 | . 1 1 . . 4 Fabricators . | . . . . . . Repair Stations . | . . . . . . Recycling Units . | . . . . . . Scanalyzers . | . . . . . . Garrison Access . | . . . . . . Total Hacks 19 | . 4 2 . . 13 Successful 9 | . 1 2 . . 6 Failed 10 | . 3 . . . 7 Catastrophic 2 | . 1 . . . 1 Database Lockouts . | . . . . . . Manual 14 | . 4 2 . . 8 Terminals 19 | . 4 2 . . 13 Fabricators . | . . . . . . Repair Stations . | . . . . . . Recycling Units . | . . . . . . Scanalyzers . | . . . . . . Garrison Access . | . . . . . . Terminal Hacks 8 | . . 2 . . 6 Prototype ID Bank 1 | . . . . . 1 Level Access Points 1 | . . . . . 1 Branch Access Points 1 | . . . . . 1 Alert Level 1 | . . . . . 1 Unreport Threat 1 | . . . . . 1 Zone Layout 3 | . . 2 . . 1 Fabricator Hacks . | . . . . . . Repair Station Hacks . | . . . . . . Recycling Unit Hacks . | . . . . . . Scanalyzer . | . . . . . . Garrison Access Hacks . | . . . . . . Unauthorized Hacks 1 | . 1 . . . . Terminals 1 | . 1 . . . . Detonate 1 | . 1 . . . . Fabricators . | . . . . . . Repair Stations . | . . . . . . Recycling Units . | . . . . . . Scanalyzers . | . . . . . . Garrison Access . | . . . . . . Data Cores Recovered 1 | . . . . . 1 Used . | . . . . . . Hacking Detections 6 | . 1 1 . . 4 Full Trace Events 1 | . 1 . . . . Feedback Events . | . . . . . . Feedback Blocked . | . . . . . . Robot Schematics Acquired . | . . . . . . Robots Built . | . . . . . . Authchips . | . . . . . . Time . | . . . . . . Total Robot Build Rating . | . . . . . . Part Schematics Acquired . | . . . . . . Parts Built . | . . . . . . Authchips . | . . . . . . Time . | . . . . . . Total Part Build Rating . | . . . . . . Parts Repaired . | . . . . . . Time . | . . . . . . Parts Recycled . | . . . . . . Recycled Matter . | . . . . . . Retrieved Matter . | . . . . . . Retrieved Components . | . . . . . . Parts Scanalyzed . | . . . . . . Part Schematics Acquired . | . . . . . . Parts Damaged . | . . . . . . Bothacking | -11 -10 -10 -10 -9 -8 ------------ Run | Yrd Mat Min Exi Min Mat Used RIF Installer . | . . . . . . Robots Hacked . | . . . . . . Non-combat . | . . . . . . Combat . | . . . . . . Robot Hacks Applied . | . . . . . . Relay Couplers Released . | . . . . . . Fabnet Peak Effective % . | . . . . . . Robots Rewired 2 | . . . 2 . . Allies Hacked . | . . . . . . Hacks Repelled . | . . . . . . Allies | -11 -10 -10 -10 -9 -8 -------- Run | Yrd Mat Min Exi Min Mat Total Allies 2 | . . . 2 . . Largest Group 2 | . . . 2 2 2 Highest-Rated Group 29 | . . . 29 29 29 Highest-Rated Ally 21 | . . . 21 21 21 Total Orders . | . . . . . . Ally Attacks 22 | . . . . 11 11 Total Damage 340 | . . . . 157 183 Kills 8 | . . . . 5 3 Allies Corrupted . | . . . . . . Allies Melted . | . . . . . . Intel | -11 -10 -10 -10 -9 -8 ------- Run | Yrd Mat Min Exi Min Mat Active Infowar (turns) 2618 | 43 220 349 723 498 785 Seismic 2618 | 43 220 349 723 498 785 Robot Analysis Total . | . . . . . . Derelict Logs Recovered 1 | . . 1 . . . Drone Launches . | . . . . . . Drone Recoveries . | . . . . . . Exploration | -11 -10 -10 -10 -9 -8 ------------- Run | Yrd Mat Min Exi Min Mat Turns Passed 2717 | 142 220 349 723 498 785 Spaces Moved 1544 | 76 137 216 448 298 369 Core 13 | 10 . . . . 3 Treads 1531 | 66 137 216 448 298 366 Legs . | . . . . . . Wheels . | . . . . . . Hover . | . . . . . . Flight . | . . . . . . Fastest Speed 50 | 50 160 160 160 160 160 Average Speed 160 | 148 160 160 160 160 163 Slowest Speed 450 | 160 160 160 160 160 450 Overloaded Moves . | . . . . . . Propulsion Burnouts . | . . . . . . Robots Hopped . | . . . . . . Potential Cave-ins . | . . . . . . Cave-ins Triggered . | . . . . . . Exploration Rate (%) 37 | 4 18 39 71 55 36 Regions Visited 5 Branch Regions 3 Pre-discovered Areas 1 | . . 1 . . . Known Exits Taken . | . . . . . . Unknown Exits Taken 5 | 1 1 1 1 1 . Scrap Searched 1 | . . . . 1 . Spaces Dug 11 | . . . . . 11 Terrain Destroyed 125 | . . . . . 125 Melee . | . . . . . . Projectile . | . . . . . . AOE 125 | . . . . . 125 Terrain Rammed . | . . . . . . Walls Destroyed . | . . . . . . Machines Disabled . | . . . . . . Actions | -11 -10 -10 -10 -9 -8 --------- Run | Yrd Mat Min Exi Min Mat Total 1667 | 91 138 220 454 308 456 Wait 3 | . . . . 2 1 Move 1539 | 75 136 215 447 297 369 Hop . | . . . . . . Pick Up 11 | 2 2 3 . 2 2 Fast Attach 17 | 7 . . . . 10 Attach 2 | . . . . . 2 Detach . | . . . . . . Swap 9 | . . 1 . . 8 Drop 7 | . . 1 . . 6 Fire 70 | 6 . . . 6 58 Melee . | . . . . . . Ram . | . . . . . . Kick . | . . . . . . Crush 2 | 1 . . . 1 . Escape Stasis . | . . . . . . Rewire 7 | . . . 7 . . Trap . | . . . . . . Miscellaneous . | . . . . . . Route ------- -11/Scrapyard -10/Materials -10/Mines -10/Exiles -9/Mines (discovered 2 exits: *Mat x2) -8/Materials (discovered 3 exits: Fac x3) History --------- Turn | Location | Event 21 | -11/Scrapyard | Discovered new exit (range 16) 143 | -11/Scrapyard | Entered Materials 315 | -10/Materials | Build established: Mutant 320 | -10/Materials | Discovered new exit (range 12) 363 | -10/Materials | Entered Mines 591 | -10/Mines | Learned location of Mines (-9) 701 | -10/Mines | Deemed a non-threat by the Exiles lab entrance 703 | -10/Mines | Discovered new exit (range 5) 712 | -10/Mines | Entered Exiles 712 | -10/Exiles | Found Exiles lab destroyed 1399 | -10/Exiles | Discovered new exit (range 14) 1435 | -10/Exiles | Entered Mines 1435 | -9/Mines | Accompanied by 2 allies 1452 | -9/Mines | Assembled infested the area 1458 | -9/Mines | Met a Derelict bent on vengeance 1781 | -9/Mines | Discovered new exit (range 14) 1848 | -9/Mines | Discovered new exit (range 11) 1933 | -9/Mines | Entered Materials 1933 | -8/Materials | Accompanied by 2 allies 1933 | -8/Materials | Evolved 4 slots: Propulsion x2, Utility x2 1979 | -8/Materials | Identified exit to Factory 2323 | -8/Materials | Build established: Scavenger-Mutant 2718 | -8/Materials | Self-destructed Last Messages --------------- U-05 Engineer lays Concrete. Lgt. Deuterium Engine destroyed. U-05 Engineer lays Concrete. U-05 Engineer builds a Wall. Lgt. Treads destroyed. Critical hit (Burn: +37). U-05 Engineer lays Concrete. U-05 Engineer builds a Wall. U-05 Engineer lays Concrete. U-05 Engineer builds a Wall. U-05 Engineer lays Concrete. U-05 Engineer builds a Wall. U-05 Engineer lays Concrete. Critical hit (Burn: +37). U-05 Engineer lays Concrete. Flak Cannon destroyed. U-05 Engineer builds a Wall. U-05 Engineer lays Concrete. U-05 Engineer builds a Wall. U-05 Engineer lays Concrete. Map ----- +----------------------------------------------------+ | | | | | | | | | ?????????????????????????????????????????????????? | | ?????????????????????????????????????????????????? | | ?????????????????????????????????????????????????? | | ?????????????????????????????????????????????????? | | ?????????????????????????????????????????????????? | | ?????????????????????????????????????????????????? | | ?????????????????????????????????????????????????? | | ?????????????????????????????????????????????????? | | ?????????????????????????????????????????????????? | | ???????????????????######????????????????????????? | | ??????????????????? #????????????????????????? | | ???????????